Cogmind - Beta 11 @@@ ROGUE MODE // 2022.03.29 @ 18:00:17 Player: Qirby Result: Destroyed by as-25541 with Assembled Heavy Rifle Performance ------------- Evolutions (0) 0 Regions Visited (4) 800 Robots Destroyed (26) 130 Value Destroyed (511) 511 Prototype IDs (1) 20 Alien Tech Used (0) 0 Bonus (164) 164 TOTAL SCORE: 1625 Bonus ------- Aligned with FarCom 300 Friendly Fire -136 Cogmind --------- Core Integrity 0/250 Matter 278/300 Energy 250/250 System Corruption 7% Temperature Cool (0) Movement Walking (120) Location -9/Mines Parts ------- > --- POWER (1) -------- Ion Engine > --- PROPULSION (2) --- Aluminum Leg > --- UTILITY (2) ------ (None) > --- WEAPON (2) ------- Rocket Launcher > --- INVENTORY (5) ---- Lightpack 2.0 High-capacity Matter Pod (200) Visual Processing Unit Peak State ------------ > --- POWER ------------ Ion Engine > --- PROPULSION ------- Aluminum Leg Aluminum Leg > --- UTILITY ---------- Structural Scanner Modified TNC > --- WEAPON ----------- Grenade Launcher Rocket Launcher > --- INVENTORY -------- Lightpack 2.0 High-capacity Matter Pod [Rating: 16] Favorites ----------- Power Ion Engine Engine Ion Engine Propulsion Aluminum Leg Leg Aluminum Leg Utility Small Storage Unit Device Structural Scanner Storage Small Storage Unit Processor Signal Interpreter Weapon Light Assault Rifle Energy Gun Particle Gun Energy Cannon Beam Cannon Ballistic Gun Light Assault Rifle Launcher Grenade Launcher Build | -11 -10 -10 -10 -9 ------- Run | Scr Mat Min Exi Min Slots Evolved . | . . . . . Power . | . . . . . Propulsion . | . . . . . Utility . | . . . . . Weapon . | . . . . . Parts Attached 36 | 8 13 8 6 1 Power 4 | 1 2 . 1 . Engine 4 | 1 2 . 1 . Core . | . . . . . Reactor . | . . . . . Propulsion 10 | 2 2 4 2 . Treads . | . . . . . Leg 10 | 2 2 4 2 . Wheel . | . . . . . Hover . | . . . . . Flight . | . . . . . Utility 8 | 2 2 1 3 . Device 4 | 1 2 . 1 . Storage 1 | 1 . . . . Processor 3 | . . 1 2 . Hackware . | . . . . . Protection . | . . . . . Artifact . | . . . . . Weapon 14 | 3 7 3 . 1 Energy Gun 3 | 1 2 . . . Energy Cannon 1 | . 1 . . . Ballistic Gun 8 | 2 4 2 . . Ballistic Cannon . | . . . . . Launcher 2 | . . 1 . 1 Special Weapon . | . . . . . Impact Weapon . | . . . . . Slashing Weapon . | . . . . . Piercing Weapon . | . . . . . Special Melee Weapon . | . . . . . Unidentified Prototypes 1 | . . . 1 . Parts Lost 8 | . 2 2 . 4 Power . | . . . . . Propulsion 2 | . . 1 . 1 Utility 3 | . 1 . . 2 Weapon 3 | . 1 1 . 1 Highest Loss Streak 4 | . 2 2 . 4 To Critical Strikes . | . . . . . Average Slot Usage (%) 95 | . 98 94 96 87 Engine 14 | . 14 14 14 14 Leg 27 | . 28 28 28 25 Device 8 | . 13 3 12 11 Storage 12 | . 14 14 10 . Processor 5 | . . 8 4 11 Energy Gun 4 | . 8 5 . . Ballistic Gun 14 | . 17 15 11 . Launcher 5 | . . 3 14 23 Naked Turns . | . . . . . Heaviest Build 16 | 15 16 15 15 13 Greatest Support 20 | 20 20 20 20 20 Greatest Overweight (x) 1 | . 1 1 . . Average Overweight (x) . | . . . . . Largest Inventory Capacity 8 | 8 8 8 8 5 Average Capacity 7 | 7 8 8 7 5 Most Carried 8 | 2 8 8 8 5 Average Carried 6 | . 5 7 5 4 Final Capacity 8 | 8 8 8 5 5 Final Carried 8 | 2 7 8 4 5 Class Distribution -------------------- 49% | Scavenger-Mutant 49% | Mutant Dominant Class ---------------- Mutant | -10/Materials Scavenger-Mutant | -10/Mines Scavenger-Mutant | -10/Exiles Scavenger-Skirmisher | -9/Mines Resources | -11 -10 -10 -10 -9 ----------- Run | Scr Mat Min Exi Min Matter Collected 770 | 244 319 148 30 29 Remotely . | . . . . . Salvage Created 921 | 126 499 229 . 67 Parts 58 | 8 39 11 . . Haulers Intercepted . | . . . . . Recyclers Shooed 2 | . . 2 . . Parts Field Recycled . | . . . . . Retrieved Matter . | . . . . . Parts Self-Destructed . | . . . . . Prevented . | . . . . . Kills | -11 -10 -10 -10 -9 ------- Run | Scr Mat Min Exi Min Combat Hostiles Destroyed 25 | . 10 5 . 10 Guns 11 | . 6 5 . . Cannons 4 | . 4 . . . AOE 10 | . . . . 10 Classes Destroyed 8 | 2 5 . . 1 Worker 2 | . 2 . . . Builder 2 | . 2 . . . Tunneler 2 | 1 . 1 . . Recycler 2 | 1 . 1 . . Watcher 3 | . 3 . . . Swarmer 6 | . 3 3 . . Grunt 9 | . 7 2 . . Assembled 10 | . . . . 10 Best Kill Streak 10 | 2 6 3 . 10 Combat Bots Only 10 | . 3 3 . 10 Max Kills in Single Turn 5 | 1 1 1 . 5 Gunslinging . | . . . . . Exploded 5 | . . . . 5 Melee . | . . . . . Uniques/NPCs Destroyed . | . . . . . Combat | -11 -10 -10 -10 -9 -------- Run | Scr Mat Min Exi Min Damage Taken 1214 | . 580 376 . 258 Core 253 | . 123 93 . 37 Absorbed by Shields . | . . . . . Core Remaining (%) 100 | 100 . . . . Volleys Fired 128 | 2 69 54 . 3 Largest 2 | 2 2 2 . 1 Hottest 85 | 60 85 85 . 33 Shots Fired 215 | 4 134 74 . 3 Gun 196 | 4 118 74 . . Cannon 16 | . 16 . . . Launcher 3 | . . . . 3 Special . | . . . . . Kinetic 144 | 2 95 47 . . Thermal 51 | . 24 27 . . Explosive 3 | . . . . 3 Electromagnetic 17 | 2 15 . . . Robot Hit Streak 10 | 3 10 7 . 6 Robot Miss Streak 5 | . 5 3 . 2 Penetration Max . | . . . . . Secondary Targets 2 | . 2 . . . Max Gunslinging Chain 1 | . 1 . . . Shots Hit Robots 121 | 3 72 45 . 1 Core Hits 65 | 2 28 14 . 21 Critical Kills . | . . . . . Critical Parts Destroyed . | . . . . . Critical Strikes 2 | . 1 1 . . Burn 1 | . . 1 . . Corrupt 1 | . 1 . . . Melee Attacks . | . . . . . Impact . | . . . . . Slashing . | . . . . . Piercing . | . . . . . Sneak Attacks . | . . . . . Combat Hostiles . | . . . . . Follow-up Attacks . | . . . . . Damage Inflicted 2102 | 42 875 538 . 647 Guns 1217 | 42 665 510 . . Cannons 210 | . 210 . . . Explosions 647 | . . . . 647 Melee . | . . . . . Ramming 28 | . . 28 . . Kinetic 748 | 30 496 222 . . Thermal 531 | . 243 288 . . Explosive 647 | . . . . 647 Electromagnetic 148 | 12 136 . . . Impact . | . . . . . Slashing . | . . . . . Piercing . | . . . . . Highest Corruption 7 | . . . . 7 Average Corruption 7 | . . . . 7 Corruption Purged . | . . . . . Corruption Blocked . | . . . . . Overload Shots . | . . . . . Overflow Damage 10 | . . . . 10 Projectiles . | . . . . . Explosions 10 | . . . . 10 Melee . | . . . . . Knockbacks 1 | . . 1 . . Impact 1 | . . 1 . . Kinetic . | . . . . . Secondary . | . . . . . Self-Inflicted Damage 67 | . . . . 67 Shots 2 | . . . . 2 Rammed . | . . . . . Targets Rammed 7 | . . 7 . . Kicked 7 | . . 7 . . Crushed . | . . . . . Highest Temperature 394 | . 172 394 . . Average Temperature 96 | . 46 147 . . Received Heat Transfer 378 | . 243 135 . . Effects 2 | . . 2 . . Shutdowns 1 | . . 1 . . Short Circuit 1 | . . 1 . . Siege Activations . | . . . . . Robots Corrupted 1 | . 1 . . . Combat Hostiles . | . . . . . Parts Fried 1 | . 1 . . . Impact Corruptions . | . . . . . Robots Melted . | . . . . . Combat Hostiles . | . . . . . Parts Melted . | . . . . . Heat Transferred 1258 | . 518 740 . . Parts Sabotaged . | . . . . . Parts Stolen . | . . . . . Parts Stripped . | . . . . . Power Chain Reactions . | . . . . . Missiles Intercepted . | . . . . . Alert | -11 -10 -10 -10 -9 ------- Run | Scr Mat Min Exi Min Peak Influence 209 | 10 209 176 . 48 Initial 81 | . 6 81 . . Average 54 | 4 95 38 . 5 Maximum Alert Level 1 | . 1 . . . Low Security (%) 93 | 100 79 100 . 100 Level 1 6 | . 20 . . . Level 2 . | . . . . . Level 3 . | . . . . . Level 4 . | . . . . . Level 5 . | . . . . . High Security . | . . . . . Max Security . | . . . . . Squads Dispatched 2 | . 2 . . . Investigation . | . . . . . Extermination . | . . . . . Reinforcement 2 | . 2 . . . Assault . | . . . . . Garrison . | . . . . . Intercept . | . . . . . Searches Triggered . | . . . . . Construction Impeded . | . . . . . Haulers Reinforced . | . . . . . Active Scanning Responses . | . . . . . Cargo Convoy Interrupts . | . . . . . Stealth | -11 -10 -10 -10 -9 --------- Run | Scr Mat Min Exi Min Distress Signals 2 | . 2 . . . Communications Jammed . | . . . . . Distress Signals . | . . . . . Times Spotted 48 | . 26 5 . 17 Peak Tracking Total 20 | . 5 3 . 20 Tactical Retreats . | . . . . . Traps | -11 -10 -10 -10 -9 ------- Run | Scr Mat Min Exi Min Traps Triggered . | . . . . . Indirectly . | . . . . . Trap Hack Attempts . | . . . . . Triggered . | . . . . . Disarmed . | . . . . . Reprogrammed . | . . . . . Reused . | . . . . . Traps Extracted . | . . . . . Installed . | . . . . . Triggered . | . . . . . Machines | -11 -10 -10 -10 -9 ---------- Run | Scr Mat Min Exi Min Machines Disabled 2 | . 2 . . . Max in Single Turn 1 | . 1 . . . Machines Sabotaged . | . . . . . Garrisons Compromised . | . . . . . Overloaded Fab Kills . | . . . . . Hacking | -11 -10 -10 -10 -9 --------- Run | Scr Mat Min Exi Min Machines Accessed 4 | . 4 . . . Terminals 3 | . 3 . . . Fabricators . | . . . . . Repair Stations . | . . . . . Recycling Units 1 | . 1 . . . Scanalyzers . | . . . . . Garrison Access . | . . . . . Total Hacks 15 | . 15 . . . Successful 8 | . 8 . . . Failed 7 | . 7 . . . Catastrophic . | . . . . . Database Lockouts . | . . . . . Manual 2 | . . . 2 . Terminals 11 | . 11 . . . Fabricators . | . . . . . Repair Stations . | . . . . . Recycling Units 4 | . 4 . . . Scanalyzers . | . . . . . Garrison Access . | . . . . . Terminal Hacks 6 | . 6 . . . Robot Analysis 1 | . 1 . . . Emergency Access Points 1 | . 1 . . . Locate Traps 1 | . 1 . . . Hauler Manifests 1 | . 1 . . . Zone Layout 2 | . 2 . . . Fabricator Hacks . | . . . . . Repair Station Hacks . | . . . . . Recycling Unit Hacks 2 | . 2 . . . Report Inventory 1 | . 1 . . . Retrieve Components 1 | . 1 . . . Scanalyzer . | . . . . . Garrison Access Hacks . | . . . . . Unauthorized Hacks . | . . . . . Terminals . | . . . . . Fabricators . | . . . . . Repair Stations . | . . . . . Recycling Units . | . . . . . Scanalyzers . | . . . . . Garrison Access . | . . . . . Data Cores Recovered . | . . . . . Used . | . . . . . Hacking Detections 2 | . 2 . . . Full Trace Events 1 | . 1 . . . Feedback Events . | . . . . . Feedback Blocked . | . . . . . Robot Schematics Acquired . | . . . . . Robots Built . | . . . . . Authchips . | . . . . . Time . | . . . . . Total Robot Build Rating . | . . . . . Part Schematics Acquired . | . . . . . Parts Built . | . . . . . Authchips . | . . . . . Time . | . . . . . Total Part Build Rating . | . . . . . Parts Repaired . | . . . . . Time . | . . . . . Parts Recycled . | . . . . . Recycled Matter . | . . . . . Retrieved Matter . | . . . . . Retrieved Components 2 | . 2 . . . Parts Scanalyzed . | . . . . . Part Schematics Acquired . | . . . . . Parts Damaged . | . . . . . Bothacking | -11 -10 -10 -10 -9 ------------ Run | Scr Mat Min Exi Min Used RIF Installer . | . . . . . Robots Hacked . | . . . . . Non-combat . | . . . . . Combat . | . . . . . Robot Hacks Applied . | . . . . . Relay Couplers Released . | . . . . . Fabnet Peak Effective % . | . . . . . Robots Rewired . | . . . . . Allies Hacked . | . . . . . Hacks Repelled . | . . . . . Allies | -11 -10 -10 -10 -9 -------- Run | Scr Mat Min Exi Min Total Allies 3 | . . 3 . . Largest Group 3 | . . 3 3 3 Highest-Rated Group 40 | . . 40 40 40 Highest-Rated Ally 16 | . . 16 16 16 Total Orders 5 | . . 5 . . ROAM 2 | . . 2 . . FOLLOW 3 | . . 3 . . Ally Attacks 7 | . . . . 7 Total Damage 104 | . . . . 104 Kills 3 | . . . . 3 Allies Corrupted . | . . . . . Allies Melted . | . . . . . Intel | -11 -10 -10 -10 -9 ------- Run | Scr Mat Min Exi Min Robot Analysis Total 1 | . 1 . . . Derelict Logs Recovered 1 | . . 1 . . Drone Launches . | . . . . . Drone Recoveries . | . . . . . Exploration | -11 -10 -10 -10 -9 ------------- Run | Scr Mat Min Exi Min Turns Passed 3089 | 82 783 1451 716 57 Spaces Moved 2200 | 54 456 1068 586 36 Core 3 | 3 . . . . Treads . | . . . . . Legs 2197 | 51 456 1068 586 36 Wheels . | . . . . . Hover . | . . . . . Flight . | . . . . . Fastest Speed 50 | 50 120 120 120 120 Average Speed 119 | 116 120 120 120 120 Slowest Speed 190 | 120 190 190 120 120 Overloaded Moves . | . . . . . Propulsion Burnouts . | . . . . . Robots Hopped . | . . . . . Cave-ins Triggered . | . . . . . Exploration Rate (%) 54 | 5 67 99 92 11 Regions Visited 4 Branch Regions 3 Pre-discovered Areas 1 | . . 1 . . Known Exits Taken 1 | . . 1 . . Unknown Exits Taken 3 | 1 1 . 1 . Scrap Searched 3 | . . 1 . 2 Spaces Dug . | . . . . . Terrain Destroyed 22 | . . . . 22 Melee . | . . . . . Projectile . | . . . . . AOE 22 | . . . . 22 Terrain Rammed . | . . . . . Walls Destroyed . | . . . . . Machines Disabled . | . . . . . Actions | -11 -10 -10 -10 -9 --------- Run | Scr Mat Min Exi Min Total 2453 | 66 571 1170 599 47 Wait 34 | . 8 21 . 5 Move 2196 | 53 455 1067 585 36 Hop . | . . . . . Pick Up 24 | 2 12 7 1 2 Fast Attach 20 | 8 8 2 2 . Attach 6 | . 3 2 . 1 Detach . | . . . . . Swap 10 | . 2 4 4 . Drop 28 | 1 14 6 7 . Fire 128 | 2 69 54 . 3 Melee . | . . . . . Ram . | . . . . . Kick 7 | . . 7 . . Crush . | . . . . . Escape Stasis . | . . . . . Rewire . | . . . . . Trap . | . . . . . Miscellaneous . | . . . . . Route ------- -11/Scrapyard -10/Materials (discovered 2 exits: [*Min x2]) -10/Mines (discovered 3 exits: *Mat x2 / *Exi) -10/Exiles (discovered 2 exits: [*Min x2]) -9/Mines History --------- Turn | Location | Event 4 | -11/Scrapyard | Discovered new exit (range 15) 83 | -11/Scrapyard | Entered Materials 197 | -10/Materials | Discovered new exit (range 12) 318 | -10/Materials | Build established: Mutant 858 | -10/Materials | Discovered new exit (range 8) 866 | -10/Materials | Entered Mines 983 | -10/Mines | Learned location of Mines (-9) 1012 | -10/Mines | Build established: Scavenger-Mutant 1073 | -10/Mines | Core integrity fell below 50% 1263 | -10/Mines | Core integrity fell below 20% 1494 | -10/Mines | Deemed a non-threat by the Exiles lab entrance 1495 | -10/Mines | Discovered new exit (range 5) 1499 | -10/Mines | Identified exit to Exiles 1540 | -10/Mines | Discovered new exit (range 6) 1545 | -10/Mines | Identified exit to Materials 1768 | -10/Mines | Build established: Mutant 1864 | -10/Mines | Assisted by bots powering up and referring to "LRC-V3" 2027 | -10/Mines | Discovered exit to Materials (range 8) 2317 | -10/Mines | Entered Exiles 2317 | -10/Exiles | Accompanied by 3 allies 2351 | -10/Exiles | Met 8R-AWN 2370 | -10/Exiles | Met EX-HEX 2417 | -10/Exiles | Met EX-DEC 2484 | -10/Exiles | Discovered new exit (range 14) 2586 | -10/Exiles | Visited The Gauntlet 2724 | -10/Exiles | Build established: Scavenger-Mutant 2790 | -10/Exiles | Met EX-BIN 2816 | -10/Exiles | Aligned with FarCom system 2817 | -10/Exiles | Given EX-Vault access code 2860 | -10/Exiles | Opened EX-Vault 2875 | -10/Exiles | Found Prototype Storage 2880 | -10/Exiles | Found Prototype Processor 2880 | -10/Exiles | Identified Modified TNC 2909 | -10/Exiles | Warned to stay clear of 0b10 Research branches 3017 | -10/Exiles | Discovered new exit (range 14) 3033 | -10/Exiles | Stole two prototypes: Modified TNC, Lightpack 2.0 3033 | -10/Exiles | Entered Mines 3033 | -9/Mines | Accompanied by 3 allies 3040 | -9/Mines | Received a Rocket Launcher from a helpful Derelict 3076 | -9/Mines | Assembled infested the area 3090 | -9/Mines | Destroyed by as-25541 with Assembled Heavy Rifle Last Messages --------------- 03077_ Destroyed Asb. Hover Unit. 03077_ as-07180 destroyed. 03077_ as-18685 destroyed. 03081_ as-20809 destroyed. 03083_ Mercenary 1a destroyed. 03083_ Trooper 1b destroyed. 03085_ as-39246 destroyed. 03085_ as-67733 destroyed. 03085_ as-06882 destroyed. 03085_ as-23455 destroyed. 03085_ as-99279 destroyed. 03085_ Destroyed Asb. F-torch. 03087_ Knocked back. 03088_ Grenade Launcher destroyed. 03088_ Structural Scanner destroyed. 03088_ Modified TNC destroyed. 03088_ System corrupted by crushing effect (+3). 03088_ System corrupted by crushing effect (+2). 03088_ Aluminum Leg destroyed. 03089_ as-40659 destroyed. Map ----- +----------------------------------------------------+ | | | | | | | | | | | | | | | | | | | | | | | | | | | | | | | | | | | | | | | | | ????????????????????##########????????????????? | | ??###################### ######???????????????? | | ??#################### ####??? ##????????? | | ??## ! g ## ##????????? | | ??## ! [! a %a %% %a ???????? | | ??## !############### @!= %a% aa %a ???????? | | ??##!=############### %%% ???????? | | ??## #######??????### %a ????????? | | ??## ###??????###### ????????? | | ?### ###??????#### ###????????? | | ?### ###??????????? ####????????? | | ?## ##??????????? ####?????????? | | ?## ##???????????? ####??????????? | | ?### ##??????????? ####???????????? | | ?######## ###???????????## ####????????????? | | ??############???????????########?????????????? | | ????????#####?????????????######??????????????? | | ??????????????????????????????????????????????? | | ??????????????????????????????????????????????? | | ??????????????????????????????????????????????? | | ??????????????????????????????????????????????? | | ??????????????????????????????????????????????? | | ??????????????????????????????????????????????? | | ??????????????????????????????????????????????? | | ??????????????????????????????????????????????? | | ??????????????????????????????????????????????? | | ??????????????????????????????????????????????? | | ??????????????????????????????????????????????? | | ??????????????????????????????????????????????? | | ??????????????????????????????????????????????? | +----------------------------------------------------+ Best States ------------- Heat Dissipation 35 Energy Generation 10 Energy Capacity 250 Matter Stores 300 Matter Capacity 300 Sight Range 16 Terrain Scan Density 10 Evasion (%) 55 Item Schematics ----------------- None Robot Schematics ------------------ None Fabricated ------------ Nothing Alien Tech Used ----------------- None Achievements -------------- Hunted Challenges ------------ None Game ------ Seed Qirby Manual? 1 Play Time 00:27:41 Cumulative 12.0 hours Start 2022.03.29 @ 17:33:37 End 2022.03.29 @ 18:00:17 Sessions 1 Manual Loads 0 Difficulty Rogue Special Mode None Game No. 16 Rogue 16 Adventurer 0 Explorer 0 Win Type - Total 0 Types 0/0/0/0/0/0/0/0/0 Lore% 16 Gallery% 16 Achievement% 15 Wizard Run 0 Options --------- ASCII 1 Keyboard 0 Movement Mouse Keybinds 0 Fullscreen 1 Font 14/Terminus Map View 84x54 Tactical HUD 1 Map Filters NONE Filters NONE Steam 1 RUN: 6abab5fa-a275-4e7d-ac74-63c396cc2201